bitfinex-derivatives/quotes_SOLF0:USTF0_20250329
["timestamp","ask_amount","ask_price","bid_price","bid_amount"]
[1743248063600,37.87087551,124.62,124.54,38.2]
[1743248063801,8.0261,124.66,124.58,8.0304]
[1743248064000,706.39117551,124.68,124.59,38.2]
[1743248064406,8.0843165,124.65,124.62,0.05719475]
[1743248064607,0.0576165,124.65,124.62,0.05719475]
[1743248069313,401.87087551,124.74,124.63,75.99087551]
[1743248069507,364.0,124.74,124.65,37.87087551]
[1743248069711,365.39585255,124.8,124.69,37.87087551]
[1743248070014,59.80513481,124.79,124.71,37.87087551]
[1743248070714,0.0547849,124.76,124.74,0.05859365]
[1743248071014,0.0547849,124.76,124.74,38.17859365]
[1743248073416,0.0547849,124.76,124.74,0.05859365]
[1743248074017,0.0547849,124.76,124.75,8.0198]
[1743248074723,8.0149,124.83,124.77,8.0182]
[1743248076021,0.06029256,124.81,124.79,0.06019437]
[1743248078617,0.06029256,124.81,124.74,37.84]
[1743248079017,37.87087551,124.82,124.74,37.84]
[1743248079619,37.84,124.83,124.74,37.84]
[1743248079919,0.05213813,124.79,124.77,0.05384586]
[1743248080121,8.0154,124.82,124.77,0.05384586]
[1743248080325,0.05818842,124.81,124.77,0.05384586]
[1743248081625,37.92906393,124.81,124.77,0.05384586]
[1743248082225,8.0179,124.78,124.77,0.05384586]
[1743248083023,37.92906393,124.81,124.77,0.05384586]
[1743248083824,0.05818842,124.81,124.77,0.05384586]
[1743248084723,8.0178,124.79,124.77,0.05384586]
[1743248085027,0.05818842,124.81,124.77,0.05384586]
[1743248086028,8.0179,124.78,124.77,0.05384586]
[1743248087229,8.0175,124.79,124.77,0.05384586]
[1743248087431,0.05818842,124.81,124.77,0.05384586]
[1743248087630,0.05818842,124.81,124.77,37.87384586]
[1743248088627,8.0179,124.78,124.77,37.87384586]
[1743248089126,8.0179,124.78,124.77,0.05384586]
[1743248089320,8.0179,124.78,124.77,4.586e-05]
[1743248096734,23.31630662,124.78,124.7,3.9677]
[1743248097031,23.31630662,124.76,124.65,23.31630662]
[1743248097336,8.0217,124.73,124.68,302.36]
[1743248097528,23.31630662,124.76,124.68,264.54]
[1743248097733,23.31630662,124.76,124.68,302.36]
[1743248097935,8.0225,124.71,124.68,302.36]
[1743248098136,0.06071618,124.73,124.71,0.0528583]
[1743248098439,8.0218,124.72,124.71,0.05245238]
[1743248099440,0.06071618,124.73,124.71,0.05245238]
[1743248100236,8.0206,124.74,124.71,0.05245238]
[1743248100435,8.0193,124.76,124.71,0.05245238]
[1743248100632,364.0,124.81,124.72,37.82]
[1743248100934,8.017,124.8,124.73,23.31630662]
[1743248101339,0.05237985,124.78,124.75,8.07635285]
[1743248101537,0.05237985,124.78,124.76,41.8259]
[1743248102338,23.31630662,124.84,124.76,41.8259]
[1743248102940,80.71437,124.85,124.76,41.8259]
[1743248103140,80.71437,124.85,124.76,49.8449]
[1743248103434,0.05774516,124.82,124.79,0.06018899]
[1743248104140,10.81754235,124.89,124.81,37.85817525]
[1743248104340,10.81754235,124.89,124.86,37.85817525]
[1743248104541,4.22444235,124.89,124.87,37.82]
[1743248104933,4.22444235,124.89,124.86,8.0126]
[1743248105131,4.22444235,124.89,124.86,37.85817525]
[1743248105337,85.55753665,124.91,124.88,37.85817525]
[1743248105537,128.63520067,124.92,124.88,37.85817525]
[1743248105736,128.63520067,124.92,124.9,8.0098]
[1743248105939,78.22939205,124.92,124.91,37.8]
[1743248107144,0.05684982,124.93,124.9,0.05250612]
[1743248107442,0.05684982,124.93,124.91,37.8]
[1743248107840,0.05684982,124.93,124.9,0.05250612]
[1743248108946,0.05684982,124.93,124.91,37.8]
[1743248109445,0.05684982,124.93,124.92,8.0089]
[1743248109945,0.05684982,124.93,124.92,45.86707525]
[1743248110745,0.05684982,124.93,124.92,37.85817525]
[1743248110946,0.05684982,124.93,124.91,37.8]
[1743248111443,0.05684982,124.93,124.91,45.8091]
[1743248111642,0.05684982,124.93,124.91,37.8]
[1743248112544,0.05684982,124.93,124.92,8.0089]
[1743248112744,0.05684982,124.93,124.91,37.8]
[1743248113146,0.05684982,124.93,124.9,45.84240612]
[1743248113440,0.05684982,124.93,124.9,0.05250612]
[1743248114244,0.05684982,124.93,124.92,8.0089]
[1743248114745,0.05684982,124.93,124.92,45.86707525]
[1743248118852,0.05684982,124.93,124.92,37.85817525]
[1743248119246,0.05684982,124.93,124.92,45.86707525]
[1743248119443,0.05684982,124.93,124.92,37.85817525]
[1743248119647,0.05684982,124.93,124.9,49.89278137]
[1743248120050,0.05684982,124.93,124.9,41.88318137]
[1743248120351,0.05684982,124.93,124.91,45.7495]
[1743248120650,0.05684982,124.93,124.91,37.74]
[1743248121650,0.05684982,124.93,124.92,8.0089]
[1743248121850,0.05684982,124.93,124.92,45.86707525]
[1743248123752,0.05684982,124.93,124.91,45.7493]
[1743248124257,0.05684982,124.93,124.91,37.74]
[1743248124955,0.05684982,124.93,124.91,60.97552401]
[1743248125157,31.71102401,125.02,124.91,60.97552401]
[1743248125350,8.4755,125.02,124.93,23.23552401]
[1743248126353,0.05437889,124.99,124.96,0.05555191]
[1743248127250,0.05437889,124.99,124.96,8.06155191]
[1743248127657,0.05437889,124.99,124.96,0.05555191]
[1743248128157,0.05437889,124.99,124.97,23.23552401]
[1743248128551,8.4166,125.07,124.97,27.61492401]
[1743248128954,8.4166,125.07,125.0,8.0038]
[1743248129157,8.4166,125.07,125.0,37.74]
[1743248129551,8.002,125.03,125.02,0.0585243]
[1743248129748,8.4166,125.07,125.02,0.0585243]
[1743248130350,23.23552401,125.06,125.0,37.74]
[1743248130554,23.23552401,125.06,124.97,37.72]
[1743248130750,8.0042,125.0,124.97,37.72]
[1743248131061,23.23552401,125.02,124.93,4.3794]
[1743248131257,8.007,124.96,124.93,37.72]
[1743248131566,8.05995464,124.96,124.93,37.77316726]
[1743248131959,0.05295464,124.96,124.93,37.77316726]
[1743248132156,0.05295464,124.96,124.93,0.05316726]
[1743248132561,8.0072,124.95,124.93,0.05316726]
[1743248132759,0.05295464,124.96,124.93,0.05316726]
[1743248134365,0.05295464,124.96,124.94,23.23552401]
[1743248134561,401.72,125.14,125.0,8.0033]
[1743248134755,8.1082,125.09,125.01,37.72]
[1743248135264,8.0003,125.06,125.01,37.72]
[1743248135564,31.34372401,125.09,125.01,37.72]
[1743248135764,8.0019,125.03,125.02,0.05992085]
[1743248136464,8.0027,125.02,124.98,37.72]
[1743248137266,8.0032,125.01,124.96,35.47112401]
[1743248137566,0.05835119,125.0,124.97,37.77423336]
[1743248137762,23.23552401,125.05,124.97,37.72]
[1743248137960,0.05681598,125.0,124.97,37.77591868]
[1743248138159,0.05681598,125.0,124.97,0.05875969]
[1743248138361,0.05681598,125.0,124.97,37.77875969]
[1743248139267,8.06071598,125.0,124.97,37.77875969]
[1743248139969,8.0051,124.98,124.97,0.05875969]
[1743248140266,27.22452401,124.99,124.91,37.72]
[1743248140462,3.989,124.99,124.92,37.72]
[1743248140655,364.0,125.01,124.93,23.23552401]
[1743248140862,364.0,125.01,124.95,8.0066]
[1743248141164,8.0034,125.01,124.96,37.7]
[1743248141367,0.05617806,124.99,124.97,0.05355895]
[1743248141663,0.06148224,124.99,124.97,0.06036081]
[1743248143960,0.06148224,124.99,124.96,37.7]
[1743248143961,0.06148224,124.99,124.94,37.7]
[1743248144162,4.2112,125.0,124.94,37.7]
[1743248144368,8.0068,124.96,124.94,37.7]
[1743248144762,4.2112,125.0,124.91,31.24502401]
[1743248144962,8.0073,124.95,124.92,37.7]
[1743248145164,0.05573722,124.95,124.92,37.75171632]
[1743248145764,8.008,124.94,124.92,37.75171632]
[1743248146074,0.05573722,124.95,124.92,0.05171632]
[1743248146272,8.0083,124.93,124.92,0.05171632]
[1743248146772,4.262,124.94,124.92,0.05171632]
[1743248147467,0.05573722,124.95,124.92,0.05171632]
[1743248148575,0.05573722,124.95,124.92,8.06041632]
[1743248148772,0.05573722,124.95,124.92,0.05171632]
[1743248151582,0.05573722,124.95,124.92,8.06051632]
[1743248152372,0.05573722,124.95,124.93,8.0082]
[1743248152577,0.05573722,124.95,124.92,0.05171632]
[1743248154178,8.06313722,124.95,124.92,0.05171632]
[1743248154877,0.05573722,124.95,124.92,0.05171632]
[1743248156078,0.05573722,124.95,124.92,8.06011632]
[1743248156683,0.05573722,124.95,124.92,0.05171632]
[1743248158375,0.05573722,124.95,124.92,8.06031632]
[1743248158585,0.05573722,124.95,124.92,0.05171632]
[1743248158785,0.05573722,124.95,124.93,8.0079]
[1743248159182,0.05573722,124.95,124.92,0.05171632]
[1743248159486,8.06283722,124.95,124.92,0.05171632]
[1743248159680,0.05573722,124.95,124.92,0.05171632]
[1743248159881,8.008,124.94,124.92,0.05171632]
[1743248160082,0.05573722,124.95,124.92,0.05171632]
[1743248160586,8.0083,124.93,124.92,0.05171632]
[1743248161284,72.99432401,124.93,124.87,121.28621202]
[1743248161478,64.99432401,124.93,124.87,121.28621202]
[1743248161688,8.0115,124.88,124.87,121.28621202]
[1743248161883,8.0115,124.88,124.87,108.11101202]
[1743248162081,8.0115,124.88,124.87,95.96791202]
[1743248162283,8.0121,124.87,124.86,132.3122313]
[1743248162486,8.0121,124.87,124.86,132.3676423]
[1743248163178,8.0121,124.87,124.85,48.79302662]
[1743248163179,8.0128,124.86,124.85,48.79302662]
[1743248163378,31.23552401,124.87,124.84,55.48828888]
[1743248163580,23.23552401,124.85,124.77,8.0181]
[1743248163789,8.0143,124.84,124.76,194.08812813]
[1743248163988,364.0,124.87,124.78,23.23552401]
[1743248164185,364.0,124.87,124.81,8.0156]
[1743248164382,60.91552401,124.91,124.8,60.91552401]
[1743248164583,60.91552401,124.91,124.84,8.014]
[1743248164584,0.06179902,124.85,124.84,8.014]
[1743248164780,0.06179902,124.85,124.83,0.06140203]
[1743248164982,60.91552401,124.91,124.81,8.4954]
[1743248165188,0.06132402,124.85,124.83,0.05280015]
[1743248165383,8.0128,124.86,124.81,16.511]
[1743248165583,23.23552401,124.89,124.81,8.4954]
[1743248165781,0.05547189,124.85,124.83,0.05651631]
[1743248166983,0.05547189,124.85,124.84,37.7]
[1743248167690,0.05547189,124.85,124.83,0.05651631]
[1743248168193,8.014,124.84,124.83,0.05651631]
[1743248169191,8.06917189,124.85,124.83,0.05651631]
[1743248169392,0.05547189,124.85,124.83,0.05651631]
[1743248171994,45.714,124.84,124.83,1.631e-05]
[1743248172590,8.014,124.84,124.83,1.631e-05]
[1743248172992,16.034,124.84,124.83,1.631e-05]
[1743248173190,8.02,124.84,124.76,4.1532]
[1743248173391,23.23552401,124.83,124.76,4.1532]
[1743248173591,23.23552401,124.83,124.73,23.23552401]
[1743248173792,23.23552401,124.86,124.75,37.7]
[1743248173990,23.23552401,124.86,124.75,60.93552401]
[1743248174393,0.05227869,124.82,124.79,0.05372723]
[1743248175192,8.0166,124.8,124.79,0.05372723]
[1743248175386,0.05227869,124.82,124.79,0.05372723]
[1743248175990,8.06807869,124.82,124.79,0.05372723]
[1743248176392,0.05227869,124.82,124.79,0.05372723]
[1743248176597,23.2878027,124.82,124.79,0.05372723]
[1743248177590,23.23552401,124.8,124.79,2.723e-05]
[1743248177798,60.93552401,124.8,124.73,37.7]
[1743248178795,8.0168,124.8,124.73,37.7]
[1743248178994,0.05588107,124.78,124.75,0.05569015]
[1743248179990,0.05588107,124.78,124.75,37.75569015]
[1743248181696,8.0186,124.77,124.75,37.75569015]
[1743248181996,0.05588107,124.78,124.75,37.75569015]
[1743248182198,8.07398107,124.78,124.75,37.75569015]
[1743248182393,0.05588107,124.78,124.75,37.75569015]
[1743248182995,8.0192,124.76,124.75,37.75569015]
[1743248183397,0.05588107,124.78,124.75,0.05569015]
[1743248183597,8.0192,124.76,124.75,0.05569015]
[1743248184091,8.0187,124.77,124.75,0.05569015]
[1743248184294,0.05588107,124.78,124.75,0.05569015]
[1743248184798,8.0185,124.77,124.75,0.05569015]
[1743248185597,8.0192,124.76,124.75,0.05569015]
[1743248185995,0.05588107,124.78,124.75,0.05569015]
[1743248187302,8.07398107,124.78,124.75,0.05569015]
[1743248188305,0.05588107,124.78,124.75,0.05569015]
[1743248189802,0.05588107,124.78,124.75,45.77539015]
[1743248190002,0.05588107,124.78,124.75,37.75569015]
[1743248190402,8.07418107,124.78,124.75,37.75569015]
[1743248190805,0.05588107,124.78,124.75,37.75569015]
[1743248191005,8.0191,124.77,124.75,37.75569015]
[1743248191305,0.05588107,124.78,124.75,37.75569015]
[1743248191707,8.07428107,124.78,124.75,37.75569015]
[1743248192207,0.05588107,124.78,124.75,37.75569015]
[1743248193502,8.07398107,124.78,124.75,37.75569015]
[1743248193704,0.05588107,124.78,124.75,37.75569015]
[1743248194009,0.05588107,124.78,124.75,45.77549015]
[1743248194201,0.05588107,124.78,124.75,37.75569015]
[1743248194709,8.07418107,124.78,124.75,37.75569015]
[1743248194908,0.05588107,124.78,124.75,37.75569015]
[1743248195708,0.05588107,124.78,124.75,45.77549015]
[1743248196003,0.05588107,124.78,124.75,37.75569015]
[1743248196210,8.07378107,124.78,124.75,37.75569015]
[1743248196409,0.05588107,124.78,124.75,37.75569015]
[1743248196803,0.05588107,124.78,124.75,0.05569015]
[1743248197000,8.0192,124.76,124.75,0.05569015]
[1743248198605,14.0187,124.77,124.75,0.05569015]
[1743248198810,6.0,124.77,124.75,0.05569015]
[1743248199213,6.0,124.77,124.76,37.68]
[1743248199615,0.05588107,124.78,124.76,37.68]
[1743248200213,43.43005846,124.78,124.76,37.68]
[1743248201005,43.43005846,124.78,124.75,0.05569015]
[1743248201516,8.0192,124.76,124.75,0.05569015]
[1743248203216,8.0186,124.77,124.75,0.05569015]
[1743248203818,0.05588107,124.78,124.75,0.05569015]
[1743248204518,8.0189,124.77,124.75,0.05569015]
[1743248205214,8.07398107,124.78,124.75,0.05569015]
[1743248205415,0.05588107,124.78,124.75,0.05569015]
[1743248205815,8.07388107,124.78,124.75,0.05569015]
[1743248206318,8.0192,124.76,124.75,0.05569015]
[1743248207019,8.0186,124.77,124.75,0.05569015]
[1743248207221,0.05588107,124.78,124.75,0.05569015]
[1743248207519,8.0191,124.77,124.75,0.05569015]
[1743248208219,8.0192,124.76,124.75,0.05569015]
[1743248208417,364.0,124.75,124.68,1.39484548]
[1743248208615,23.23552401,124.71,124.61,4.3469]
[1743248208819,37.68,124.7,124.61,4.3469]
[1743248209019,23.23552401,124.69,124.61,4.3469]
[1743248209218,37.68,124.7,124.61,4.3469]
[1743248209415,23.23552401,124.69,124.61,4.3469]
[1743248209622,8.025,124.67,124.66,0.0606637]
[1743248209819,31.26052401,124.67,124.66,0.0606637]
[1743248210024,23.23552401,124.67,124.61,4.3469]
[1743248210219,8.0266,124.65,124.61,4.3469]
[1743248210418,23.23552401,124.67,124.61,4.3469]
[1743248210624,37.68,124.66,124.61,4.3469]
[1743248211019,8.0275,124.64,124.61,4.3469]
[1743248211223,23.23552401,124.65,124.61,4.3469]
[1743248211420,8.0282,124.62,124.61,0.05600566]
[1743248212927,0.05928446,124.64,124.61,0.05600566]
[1743248214829,8.08628446,124.64,124.61,0.05600566]
[1743248216927,0.05928446,124.64,124.61,0.05600566]
[1743248217124,66.6097014,124.71,124.61,0.05600566]
[1743248217321,23.23552401,124.67,124.61,1.45424811]
[1743248217624,8.0273,124.64,124.59,37.68]
[1743248217828,8.0273,124.64,124.6,1.45415889]
[1743248218230,8.0273,124.64,124.61,0.05082391]
[1743248218431,0.05297515,124.63,124.61,0.05082391]
[1743248221128,23.23552401,124.69,124.61,0.05082391]
[1743248221328,23.23552401,124.69,124.61,1.4542597]
[1743248221527,8.0248,124.68,124.62,8.0278]
[1743248221727,8.0248,124.68,124.63,37.68]
[1743248222124,23.23552401,124.71,124.63,37.68]
[1743248222330,60.73750006,124.73,124.64,28.88005476]
[1743248222526,60.73750006,124.73,124.66,8.0252]
[1743248222730,60.73750006,124.73,124.67,37.68]
[1743248222929,8.0214,124.73,124.67,37.68]
[1743248223133,8.0214,124.73,124.67,45.7046]
[1743248223435,8.0207,124.74,124.67,37.68]
[1743248223635,0.05398596,124.71,124.69,0.05513147]
[1743248223930,34.08287207,124.77,124.68,1.4532418]
[1743248224134,10.84734806,124.77,124.68,24.68876581]
[1743248224335,10.84734806,124.77,124.68,23.23552401]
[1743248224524,10.84734806,124.77,124.69,1.45320145]
[1743248225235,0.05511456,124.74,124.72,0.05516076]
[1743248225437,0.05511456,124.74,124.72,37.71516076]
[1743248226339,23.23552401,124.82,124.73,4.3177]
[1743248227334,31.25092401,124.82,124.75,8.0196]
[1743248227533,0.0573565,124.79,124.76,37.7161279]
[1743248227926,66.6097014,124.84,124.76,37.7161279]
[1743248228130,23.23552401,124.84,124.76,37.66]
[1743248228427,8.017,124.8,124.76,37.66]
[1743248228630,23.23552401,124.82,124.76,37.66]
[1743248229028,0.06170964,124.8,124.78,0.05917424]
[1743248229228,23.29723365,124.8,124.78,0.05917424]
[1743248229836,0.06170964,124.8,124.78,0.05917424]
[1743248232039,23.29723365,124.8,124.78,0.05917424]
[1743248232439,0.06170964,124.8,124.78,0.05917424]
[1743248233938,8.0173,124.79,124.78,0.05917424]
[1743248234139,23.23552401,124.79,124.68,388.62978271]
[1743248234437,23.23552401,124.77,124.7,39.07298987]
[1743248234637,23.23552401,124.75,124.7,37.62]
[1743248235140,8.0208,124.74,124.7,37.62]
[1743248235332,8.07800308,124.74,124.71,0.060005]
[1743248236536,8.0212,124.73,124.71,0.060005]
[1743248236737,0.05720308,124.74,124.71,0.060005]
[1743248238138,8.0218,124.72,124.71,0.060005]
[1743248239737,8.025,124.67,124.66,1.4535965]
[1743248239944,23.23552401,124.71,124.63,37.62]
[1743248240146,23.23552401,124.69,124.62,37.62]
[1743248240347,8.0267,124.65,124.62,37.62]
[1743248240840,8.0259,124.66,124.62,37.62]
[1743248241042,0.05282089,124.65,124.62,37.67261356]
[1743248244639,4.1393,124.72,124.63,1.45412997]
[1743248244841,23.23552401,124.71,124.63,1.45412997]
[1743248245042,8.0241,124.69,124.63,1.45412997]
[1743248245345,8.0241,124.69,124.63,9.48112997]
[1743248245538,8.0233,124.7,124.64,1.45412997]
[1743248245738,0.05071165,124.67,124.65,0.05420071]
[1743248246442,287.73552401,124.73,124.66,37.62]
[1743248246840,287.73552401,124.73,124.66,45.6455]
[1743248247047,287.73552401,124.73,124.66,37.62]
[1743248247439,8.0222,124.72,124.68,0.05322076]
[1743248247743,0.05652237,124.71,124.68,0.05322076]
[1743248247945,8.07892237,124.71,124.68,0.05322076]
[1743248248145,0.05652237,124.71,124.68,0.05322076]
[1743248249147,8.0237,124.69,124.68,0.05322076]
[1743248249543,8.026,124.66,124.62,37.6]
[1743248249743,8.026,124.66,124.63,1.4540677]
[1743248249944,8.026,124.66,124.62,37.6]
[1743248250151,37.6,124.7,124.54,23.23552401]
[1743248250152,23.23552401,124.65,124.54,23.23552401]
[1743248250449,23.23552401,124.65,124.59,37.6]
[1743248250651,0.06141128,124.62,124.6,39.05429956]
[1743248250846,23.23552401,124.67,124.6,37.6]
[1743248251046,0.05949663,124.62,124.6,45.68280727]
[1743248251242,23.23552401,124.67,124.6,45.68280727]
[1743248251447,23.23552401,124.67,124.6,37.65360727]
[1743248251650,0.056171,124.65,124.6,37.65360727]
[1743248252351,8.082771,124.65,124.6,37.65360727]
[1743248252652,8.082771,124.65,124.6,0.05360727]
[1743248252951,8.027,124.64,124.61,37.6]
[1743248253652,8.082771,124.65,124.61,37.6]
[1743248253855,0.056171,124.65,124.61,37.6]
[1743248254249,8.0269,124.64,124.61,37.6]
[1743248254444,0.056171,124.65,124.6,0.05360727]
[1743248254652,23.23552401,124.63,124.6,0.05360727]
[1743248254851,8.0288,124.61,124.6,0.05360727]
[1743248255951,31.26432401,124.61,124.6,0.05360727]
[1743248256152,23.23552401,124.61,124.56,1.45473751]
[1743248256352,23.23552401,124.61,124.54,1.4549615]
[1743248256751,23.23552401,124.59,124.54,1.4549615]
[1743248256955,23.23552401,124.59,124.53,37.6]
[1743248257153,8.08313962,124.57,124.55,0.0518044]
[1743248257558,0.05133962,124.57,124.55,0.0518044]
[1743248259162,8.08273962,124.57,124.55,0.0518044]
[1743248259560,50.13367207,124.67,124.56,84.07104802]
[1743248259561,10.84734806,124.67,124.56,84.07104802]
[1743248259761,15.17874806,124.67,124.63,23.23552401]
[1743248260664,0.06100191,124.66,124.64,0.05900982]
[1743248265655,0.06100191,124.66,124.65,31.26182401]
[1743248266062,4.278,124.71,124.65,23.23552401]
[1743248266461,4.278,124.71,124.66,8.0252]
[1743248267061,12.3005,124.71,124.66,8.0252]
[1743248267262,0.05181152,124.7,124.67,0.05249993]
[1743248267863,37.63181152,124.7,124.67,0.05249993]
[1743248268066,8.0243,124.68,124.61,23.23552401]
[1743248268267,60.81552401,124.7,124.59,60.81552401]
[1743248268661,8.0261,124.66,124.59,60.81552401]
[1743248268862,8.0261,124.66,124.6,8.0294]
[1743248269064,60.81552401,124.7,124.59,60.81552401]
[1743248269263,0.06117666,124.64,124.62,0.0614856]
[1743248269561,60.81552401,124.7,124.59,60.81552401]
[1743248269767,0.0511277,124.64,124.62,0.05382849]
[1743248269966,8.0267,124.65,124.59,60.81552401]
[1743248270165,0.06159587,124.64,124.62,0.05410401]
[1743248270669,8.08849587,124.64,124.62,0.05410401]
[1743248270969,0.06159587,124.64,124.62,0.05410401]
[1743248271365,302.3,124.7,124.63,23.23552401]
[1743248271867,8.0253,124.67,124.63,23.23552401]
[1743248272067,8.0253,124.67,124.63,60.81552401]
[1743248272369,0.05144743,124.66,124.64,0.0559596]
[1743248274973,8.07704743,124.66,124.64,0.0559596]
[1743248275766,0.05144743,124.66,124.64,0.0559596]
[1743248276274,8.07744743,124.66,124.64,0.0559596]
[1743248276866,0.05144743,124.66,124.64,0.0559596]
[1743248277673,8.07744743,124.66,124.64,0.0559596]
[1743248277869,0.05144743,124.66,124.64,0.0559596]
[1743248278270,8.0263,124.65,124.64,0.0559596]
[1743248279275,0.05144743,124.66,124.64,0.0559596]
[1743248279770,8.0263,124.65,124.64,0.0559596]
[1743248280377,8.0288,124.61,124.6,37.56]
[1743248280672,37.56,124.66,124.58,4.2601]
[1743248280873,8.0267,124.65,124.59,31.26522401]
[1743248281076,37.56,124.66,124.59,23.23552401]
[1743248281270,66.6097014,124.68,124.58,4.2601]
[1743248281476,8.0285,124.62,124.61,0.05774384]
[1743248282875,8.0279,124.63,124.61,0.05774384]
[1743248283074,0.05552545,124.64,124.61,0.05774384]
[1743248283376,8.028,124.63,124.61,0.05774384]
[1743248284277,8.0282,124.62,124.61,0.05774384]
[1743248284772,0.05552545,124.64,124.61,0.05774384]
[1743248284973,8.0279,124.63,124.61,0.05774384]
[1743248285176,0.05552545,124.64,124.61,0.05774384]
[1743248285371,8.0279,124.63,124.61,0.05774384]
[1743248285777,0.05552545,124.64,124.61,0.05774384]
[1743248286379,8.08302545,124.64,124.61,0.05774384]
[1743248286574,0.05552545,124.64,124.61,0.05774384]
[1743248287570,14.59946108,124.63,124.53,264.72]
[1743248287777,14.59946108,124.6,124.53,41.7621]
[1743248287978,14.59946108,124.58,124.53,4.2221]
[1743248288573,8.0324,124.56,124.53,4.2221]
[1743248288768,0.05666337,124.57,124.54,0.05293248]
[1743248289676,8.0326,124.56,124.54,0.05293248]
[1743248291182,0.05666337,124.57,124.54,0.05293248]
[1743248291580,8.0324,124.56,124.54,0.05293248]
[1743248291985,0.05666337,124.57,124.54,0.05293248]
[1743248292177,66.76165864,124.66,124.57,8.0314]
[1743248292374,66.76165864,124.66,124.55,37.54]
[1743248292576,8.0292,124.61,124.55,37.54]
[1743248292772,23.38748125,124.64,124.57,8.031]
[1743248292985,23.38748125,124.64,124.55,37.54]
[1743248293279,23.38748125,124.64,124.58,0.05615106]
[1743248293477,0.05629507,124.61,124.58,0.05615106]
[1743248293785,8.0299,124.6,124.58,0.05615106]
[1743248294983,8.08549507,124.61,124.58,0.05615106]
[1743248295378,0.05629507,124.61,124.51,23.75641167]
[1743248295583,23.38748125,124.58,124.52,38.99502037]
[1743248295783,23.38748125,124.58,124.52,37.54]
[1743248295983,23.38748125,124.6,124.52,37.54]
[1743248296487,23.38748125,124.58,124.52,37.54]
[1743248296677,0.05757565,124.57,124.55,0.05209593]
[1743248297192,0.05757565,124.57,124.49,45.5764]
[1743248297389,23.38748125,124.56,124.5,1.4553719]
[1743248297585,23.38748125,124.56,124.48,37.54]
[1743248297785,23.38748125,124.56,124.49,1.45552345]
[1743248297980,8.0359,124.5,124.49,1.45552345]
[1743248298185,8.0359,124.5,124.46,3.9774]
[1743248298390,60.90748125,124.54,124.48,0.0567875]
[1743248298589,0.05343333,124.49,124.48,0.0567875]
[1743248298794,60.90748125,124.54,124.48,0.0567875]
[1743248298988,0.06174324,124.5,124.48,0.0567875]
[1743248299493,37.52,124.57,124.48,0.0567875]
[1743248299494,37.52,124.57,124.49,37.52]
[1743248300391,8.0327,124.55,124.49,45.5563]
[1743248300591,0.05451024,124.54,124.52,0.05304514]
[1743248302293,8.08801024,124.54,124.52,0.05304514]
[1743248302799,0.05451024,124.54,124.52,0.05304514]
[1743248302985,23.44199149,124.54,124.47,37.52]
[1743248303186,23.38748125,124.52,124.46,41.4974]
[1743248303586,8.0363,124.5,124.46,41.4974]
[1743248303988,4.1113,124.53,124.42,4.3382]
[1743248304193,23.38748125,124.48,124.47,6.895e-05]
[1743248304491,31.42488125,124.48,124.4,37.52]
[1743248304694,23.38748125,124.48,124.4,37.52]
[1743248304888,23.38748125,124.48,124.41,1.45652597]
[1743248305087,8.0379,124.47,124.41,1.45652597]
[1743248305290,23.38748125,124.48,124.4,37.52]
[1743248305601,0.05574191,124.45,124.43,0.05455943]
[1743248307087,4.11504191,124.45,124.43,0.05455943]
[1743248307293,84.3149625,124.44,124.34,4.2514]
[1743248307489,23.38748125,124.41,124.34,41.7914]
[1743248307687,23.38748125,124.41,124.35,1.4571222]
[1743248308094,4.0593,124.45,124.36,23.38748125]
[1743248308299,8.0383,124.47,124.38,23.38748125]
[1743248308500,0.06179535,124.42,124.39,39.0366282]
[1743248308693,0.06179535,124.42,124.4,1.4571222]
[1743248309094,0.06179535,124.42,124.4,1.50776722]
[1743248309300,4.0035,124.49,124.4,23.43812627]
[1743248309598,4.0035,124.49,124.41,1.45658317]
[1743248309989,8.0374,124.48,124.41,9.49788317]
[1743248310196,4.0035,124.49,124.42,1.45658317]
[1743248310490,4.0035,124.49,124.44,0.06157701]
[1743248310792,0.0614473,124.47,124.44,0.06157701]
[1743248310992,23.44892855,124.47,124.44,0.06157701]
[1743248311196,23.38748125,124.45,124.44,0.06157701]
[1743248311700,31.42748125,124.45,124.39,1.45674822]
[1743248311992,23.38748125,124.41,124.32,1.39891062]
[1743248312199,8.0443,124.38,124.33,1.45737905]
[1743248312496,23.38748125,124.39,124.31,4.2422]
[1743248312700,23.38748125,124.37,124.29,37.54]
[1743248313003,0.05642851,124.36,124.34,0.05140685]